[Event "*** Titled Tuesday Blitz"]
[Site "Chess.com"]
[Date "2021.04.06"]
[Round "4"]
[White "ahmad_alkhatib11"]
[Black "pfalcon1949"]
[Result "1-0"]
[WhiteElo "2290"]
[BlackElo "1992"]
[TimeControl "180+1"]
[EndTime "10:40:26 PDT"]
[Termination "ahmad_alkhatib11 won on time"]

1. Nf3 {[%clk 0:03:00.9]} 1... c5 {[%clk 0:02:58.4]} 2. g3 {[%clk 0:02:59.1]}
2... Nc6 {[%clk 0:02:58.7]} 3. Bg2 {[%clk 0:02:59]} 3... g6 {[%clk 0:02:59.3]}
4. O-O {[%clk 0:02:58.9]} 4... Bg7 {[%clk 0:02:59.9]} 5. e4 {[%clk 0:02:59.3]}
5... e5 {[%clk 0:03:00.4]} 6. d3 {[%clk 0:02:59.2]} 6... Nge7 {[%clk 0:03:01]}
7. Nc3 {[%clk 0:02:59.7]} 7... d6 {[%clk 0:03:01.5]} 8. Nd2 {[%clk 0:02:59.8]}
8... O-O {[%clk 0:03:02]} 9. Nc4 {[%clk 0:03:00.2]} 9... Rb8 {[%clk 0:02:52.7]}
10. Nb5 {[%clk 0:02:57]} 10... d5 {[%clk 0:02:32.9]} 11. exd5 {[%clk 0:02:42.3]}
11... Nxd5 {[%clk 0:02:32.2]} 12. Ncd6 {[%clk 0:02:27]} 12... Be6 {[%clk
0:02:26.5]} 13. Ne4 {[%clk 0:02:21.4]} 13... a6 {[%clk 0:02:21.1]} 14. Na3
{[%clk 0:01:57.2]} 14... b6 {[%clk 0:02:20.4]} 15. Nc4 {[%clk 0:01:50.3]} 15...
h6 {[%clk 0:02:04.4]} 16. Re1 {[%clk 0:01:46.3]} 16... Kh7 {[%clk 0:02:03.5]}
17. a4 {[%clk 0:01:44.6]} 17... b5 {[%clk 0:01:55.1]} 18. axb5 {[%clk
0:01:44.6]} 18... axb5 {[%clk 0:01:56]} 19. Ne3 {[%clk 0:01:44.1]} 19... Qe7
{[%clk 0:01:49.2]} 20. Nxd5 {[%clk 0:01:31.9]} 20... Bxd5 {[%clk 0:01:47.3]} 21.
Ng5+ {[%clk 0:01:29.1]} 21... hxg5 {[%clk 0:01:42.2]} 22. Bxd5 {[%clk
0:01:21.4]} 22... Nd4 {[%clk 0:01:37.4]} 23. c3 {[%clk 0:01:17.3]} 23... Nf5
{[%clk 0:01:28]} 24. Qg4 {[%clk 0:01:11.8]} 24... f6 {[%clk 0:01:27.2]} 25. Be4
{[%clk 0:01:09.3]} 25... Nh6 {[%clk 0:01:16.2]} 26. Qe2 {[%clk 0:00:49.4]} 26...
f5 {[%clk 0:01:13]} 27. Bg2 {[%clk 0:00:45.8]} 27... Ng4 {[%clk 0:01:03.4]} 28.
h3 {[%clk 0:00:42.4]} 28... Nh6 {[%clk 0:01:00.3]} 29. Ra6 {[%clk 0:00:41.9]}
29... b4 {[%clk 0:00:50.8]} 30. Bd2 {[%clk 0:00:28.3]} 30... bxc3 {[%clk
0:00:45.9]} 31. Bxc3 {[%clk 0:00:29.2]} 31... Rbe8 {[%clk 0:00:42]} 32. Qc2
{[%clk 0:00:22.5]} 32... f4 {[%clk 0:00:34.3]} 33. Be4 {[%clk 0:00:11.8]} 33...
Rf6 {[%clk 0:00:30.8]} 34. Rxf6 {[%clk 0:00:08.9]} 34... Qxf6 {[%clk 0:00:31]}
35. Qe2 {[%clk 0:00:08.7]} 35... Nf5 {[%clk 0:00:27.5]} 36. Qg4 {[%clk 0:00:07]}
36... fxg3 {[%clk 0:00:25.1]} 37. fxg3 {[%clk 0:00:06.8]} 37... Rf8 {[%clk
0:00:24.5]} 38. Rf1 {[%clk 0:00:06.6]} 38... Bh6 {[%clk 0:00:22.6]} 39. Kh2
{[%clk 0:00:06.8]} 39... Kg8 {[%clk 0:00:15.8]} 40. Rf3 {[%clk 0:00:06.9]} 40...
Rf7 {[%clk 0:00:11.5]} 41. Rf2 {[%clk 0:00:07.2]} 41... Kg7 {[%clk 0:00:11]} 42.
Rf3 {[%clk 0:00:07.2]} 42... Kg8 {[%clk 0:00:10.4]} 43. Bd5 {[%clk 0:00:07.4]}
43... Ne3 {[%clk 0:00:06.8]} 44. Bxf7+ {[%clk 0:00:06.7]} 44... Qxf7 {[%clk
0:00:01.8]} 45. Qe4 {[%clk 0:00:05.8]} 1-0

[Event "*** Titled Tuesday Blitz"]
[Site "Chess.com"]
[Date "2021.04.06"]
[Round "4"]
[White "PrinceMurad09"]
[Black "Zeeduin"]
[Result "0-1"]
[WhiteElo "2541"]
[BlackElo "2771"]
[TimeControl "180+1"]
[EndTime "10:40:27 PDT"]
[Termination "Zeeduin won by checkmate"]

1. e4 {[%clk 0:03:00.9]} 1... e5 {[%clk 0:02:58.6]} 2. Nf3 {[%clk 0:03:01]} 2...
Nc6 {[%clk 0:02:58.7]} 3. d4 {[%clk 0:03:01.2]} 3... exd4 {[%clk 0:02:55]} 4.
Nxd4 {[%clk 0:03:02.1]} 4... Nf6 {[%clk 0:02:54.6]} 5. Nxc6 {[%clk 0:03:01.4]}
5... bxc6 {[%clk 0:02:54.6]} 6. Bd3 {[%clk 0:03:02]} 6... d5 {[%clk 0:02:54.6]}
7. exd5 {[%clk 0:03:02.4]} 7... cxd5 {[%clk 0:02:54.6]} 8. O-O {[%clk
0:03:02.8]} 8... c6 {[%clk 0:02:49.7]} 9. Re1+ {[%clk 0:03:02.9]} 9... Be7
{[%clk 0:02:49.5]} 10. c4 {[%clk 0:03:02.9]} 10... O-O {[%clk 0:02:49.5]} 11.
cxd5 {[%clk 0:03:02]} 11... cxd5 {[%clk 0:02:50.4]} 12. b3 {[%clk 0:03:01.7]}
12... Bg4 {[%clk 0:02:46.9]} 13. f3 {[%clk 0:02:58]} 13... Bh5 {[%clk
0:02:38.3]} 14. Bb2 {[%clk 0:02:57.9]} 14... Re8 {[%clk 0:02:34.1]} 15. Nd2
{[%clk 0:02:57.8]} 15... Bg6 {[%clk 0:02:32.5]} 16. Bxg6 {[%clk 0:02:53.8]}
16... hxg6 {[%clk 0:02:33.4]} 17. Bd4 {[%clk 0:02:49.8]} 17... Qa5 {[%clk
0:02:31.2]} 18. Nf1 {[%clk 0:02:41.1]} 18... Bb4 {[%clk 0:02:08.5]} 19. Rxe8+
{[%clk 0:02:28.7]} 19... Rxe8 {[%clk 0:02:09.4]} 20. a3 {[%clk 0:02:29]} 20...
Bc3 {[%clk 0:01:59.8]} 21. b4 {[%clk 0:02:24.9]} 21... Qc7 {[%clk 0:01:59.9]}
22. Bxc3 {[%clk 0:02:13.9]} 22... Qxc3 {[%clk 0:01:59.7]} 23. Qc1 {[%clk
0:02:00.9]} 23... Qd4+ {[%clk 0:01:57.4]} 24. Kh1 {[%clk 0:02:01.1]} 24... g5
{[%clk 0:01:53.3]} 25. Ra2 {[%clk 0:01:34.2]} 25... g4 {[%clk 0:01:51.1]} 26.
Qd2 {[%clk 0:01:31.5]} 26... Qc4 {[%clk 0:01:49.2]} 27. Kg1 {[%clk 0:01:22.5]}
27... gxf3 {[%clk 0:01:48.6]} 28. gxf3 {[%clk 0:01:22.9]} 28... d4 {[%clk
0:01:42.4]} 29. Rc2 {[%clk 0:01:17.3]} 29... Qb3 {[%clk 0:01:43]} 30. Rc5 {[%clk
0:01:01.3]} 30... Qxa3 {[%clk 0:01:14.2]} 31. Qxd4 {[%clk 0:00:57]} 31... Qxf3
{[%clk 0:01:14]} 32. Rc3 {[%clk 0:00:46.7]} 32... Qh5 {[%clk 0:01:06.1]} 33. Rg3
{[%clk 0:00:41.3]} 33... Qh6 {[%clk 0:00:35.4]} 34. Ne3 {[%clk 0:00:38.8]} 34...
Nh5 {[%clk 0:00:27.1]} 35. Rf3 {[%clk 0:00:27.6]} 35... Qg6+ {[%clk 0:00:24.8]}
36. Kf2 {[%clk 0:00:27.7]} 36... Nf6 {[%clk 0:00:24.2]} 37. Nf5 {[%clk
0:00:19.4]} 37... Ne4+ {[%clk 0:00:19.2]} 38. Kf1 {[%clk 0:00:19.7]} 38... Ng5
{[%clk 0:00:17.5]} 39. Rf2 {[%clk 0:00:18.1]} 39... Qa6+ {[%clk 0:00:17.6]} 40.
Kg2 {[%clk 0:00:15.1]} 40... Qc6+ {[%clk 0:00:17.3]} 41. Kg3 {[%clk 0:00:10.2]}
41... Ne4+ {[%clk 0:00:16.6]} 42. Kh4 {[%clk 0:00:03.4]} 42... Qg6 {[%clk
0:00:12.4]} 43. Rg2 {[%clk 0:00:01.7]} 43... Qxg2 {[%clk 0:00:11.3]} 44. Ne7+
{[%clk 0:00:01.3]} 44... Rxe7 {[%clk 0:00:08.2]} 45. Qd8+ {[%clk 0:00:02.2]}
45... Kh7 {[%clk 0:00:08.6]} 46. Qh8+ {[%clk 0:00:02.4]} 46... Kxh8 {[%clk
0:00:08.2]} 47. h3 {[%clk 0:00:03.3]} 47... Qg5# {[%clk 0:00:07.5]} 0-1

[Event "*** Titled Tuesday Blitz"]
[Site "Chess.com"]
[Date "2021.04.06"]
[Round "4"]
[White "2346PL"]
[Black "Leonid_Starozhilov"]
[Result "1/2-1/2"]
[WhiteElo "2492"]
[BlackElo "2723"]
[TimeControl "180+1"]
[EndTime "10:40:31 PDT"]
[Termination "Game drawn by repetition"]

1. d4 {[%clk 0:03:00.9]} 1... Nf6 {[%clk 0:03:00.1]} 2. Nc3 {[%clk 0:03:00.8]}
2... d5 {[%clk 0:02:59.7]} 3. Bf4 {[%clk 0:03:01.1]} 3... c6 {[%clk 0:02:59.7]}
4. e3 {[%clk 0:03:01.6]} 4... Bf5 {[%clk 0:02:46.9]} 5. f3 {[%clk 0:03:00.7]}
5... h5 {[%clk 0:02:46.7]} 6. Bd3 {[%clk 0:02:58.6]} 6... e6 {[%clk 0:02:33.7]}
7. Nge2 {[%clk 0:02:50.1]} 7... Qb6 {[%clk 0:02:16.1]} 8. Qd2 {[%clk 0:02:41.9]}
8... Bxd3 {[%clk 0:02:05.4]} 9. cxd3 {[%clk 0:02:39.3]} 9... Nbd7 {[%clk
0:02:05.4]} 10. O-O {[%clk 0:02:35.9]} 10... h4 {[%clk 0:02:03.2]} 11. h3 {[%clk
0:02:24.7]} 11... Be7 {[%clk 0:01:51.8]} 12. a3 {[%clk 0:02:23.5]} 12... c5
{[%clk 0:01:39]} 13. Na4 {[%clk 0:02:18.4]} 13... Qb5 {[%clk 0:01:38.7]} 14.
Nxc5 {[%clk 0:01:59.3]} 14... Nxc5 {[%clk 0:01:38.4]} 15. dxc5 {[%clk
0:01:58.6]} 15... Bxc5 {[%clk 0:01:37.3]} 16. b4 {[%clk 0:01:53.7]} 16... Bb6
{[%clk 0:01:31.1]} 17. Rac1 {[%clk 0:01:43]} 17... Nh5 {[%clk 0:01:21.1]} 18.
Bd6 {[%clk 0:01:38.2]} 18... Qd7 {[%clk 0:01:18.4]} 19. Bc5 {[%clk 0:01:36.5]}
19... Bc7 {[%clk 0:01:12.9]} 20. f4 {[%clk 0:01:33.9]} 20... Nf6 {[%clk
0:00:58.2]} 21. Qb2 {[%clk 0:01:17.4]} 21... Bd6 {[%clk 0:00:54]} 22. Nd4 {[%clk
0:01:12.8]} 22... Bxc5 {[%clk 0:00:29.5]} 23. Rxc5 {[%clk 0:01:11.4]} 23... O-O
{[%clk 0:00:27.3]} 24. Qf2 {[%clk 0:01:07.2]} 24... b6 {[%clk 0:00:24.4]} 25.
Rc3 {[%clk 0:01:03]} 25... Rac8 {[%clk 0:00:24]} 26. Rfc1 {[%clk 0:01:02.8]}
26... Rxc3 {[%clk 0:00:23.6]} 27. Rxc3 {[%clk 0:01:02.7]} 27... Rc8 {[%clk
0:00:24.4]} 28. Qc2 {[%clk 0:00:57.7]} 28... Rxc3 {[%clk 0:00:23.6]} 29. Qxc3
{[%clk 0:00:58.6]} 29... Qa4 {[%clk 0:00:21.4]} 30. Qb3 {[%clk 0:00:54.9]} 30...
Qxb3 {[%clk 0:00:16.1]} 31. Nxb3 {[%clk 0:00:55.8]} 31... Nd7 {[%clk 0:00:10.8]}
32. Nd4 {[%clk 0:00:52.2]} 32... Kf8 {[%clk 0:00:09.2]} 33. Nf3 {[%clk
0:00:50.4]} 33... a5 {[%clk 0:00:09.4]} 34. Kf2 {[%clk 0:00:40.9]} 34... axb4
{[%clk 0:00:09]} 35. axb4 {[%clk 0:00:41.8]} 35... Nb8 {[%clk 0:00:08.8]} 36.
Nd4 {[%clk 0:00:35.8]} 36... Ke7 {[%clk 0:00:07.6]} 37. e4 {[%clk 0:00:32.8]}
37... dxe4 {[%clk 0:00:07.3]} 38. dxe4 {[%clk 0:00:32.8]} 38... f6 {[%clk
0:00:05.5]} 39. Ke3 {[%clk 0:00:27]} 39... Na6 {[%clk 0:00:05.4]} 40. Nc2 {[%clk
0:00:22.2]} 40... Kd6 {[%clk 0:00:05.3]} 41. Kd4 {[%clk 0:00:22.2]} 41... e5+
{[%clk 0:00:04.4]} 42. fxe5+ {[%clk 0:00:22.2]} 42... fxe5+ {[%clk 0:00:05.3]}
43. Kc4 {[%clk 0:00:22.6]} 43... Nc7 {[%clk 0:00:05.7]} 44. Ne3 {[%clk
0:00:18.7]} 44... b5+ {[%clk 0:00:05.5]} 45. Kd3 {[%clk 0:00:18.1]} 45... g6
{[%clk 0:00:05.8]} 46. Ng4 {[%clk 0:00:15.5]} 46... Ne6 {[%clk 0:00:06.1]} 47.
Ne3 {[%clk 0:00:12]} 47... Nf4+ {[%clk 0:00:06.1]} 48. Kc3 {[%clk 0:00:12.1]}
48... Ke6 {[%clk 0:00:06]} 49. Kd2 {[%clk 0:00:11.8]} 49... Kd6 {[%clk
0:00:05.9]} 50. Kc3 {[%clk 0:00:11.9]} 50... Ke6 {[%clk 0:00:05.9]} 51. Kd2
{[%clk 0:00:12.1]} 51... Kd6 {[%clk 0:00:06.4]} 52. Kc3 {[%clk 0:00:11.5]}
1/2-1/2

[Event "*** Titled Tuesday Blitz"]
[Site "Chess.com"]
[Date "2021.04.06"]
[Round "4"]
[White "krasavetc"]
[Black "FoggyMorning"]
[Result "1-0"]
[WhiteElo "2382"]
[BlackElo "2578"]
[TimeControl "180+1"]
[EndTime "10:40:32 PDT"]
[Termination "krasavetc won by checkmate"]

1. e4 {[%clk 0:03:00.9]} 1... c5 {[%clk 0:02:58.6]} 2. Nf3 {[%clk 0:03:00.1]}
2... d6 {[%clk 0:02:59.1]} 3. Bb5+ {[%clk 0:02:59.6]} 3... Nc6 {[%clk
0:02:58.6]} 4. O-O {[%clk 0:02:58.6]} 4... Bd7 {[%clk 0:02:59.2]} 5. Re1 {[%clk
0:02:58.6]} 5... Nf6 {[%clk 0:02:59.7]} 6. c3 {[%clk 0:02:58.5]} 6... a6 {[%clk
0:03:00.3]} 7. Bf1 {[%clk 0:02:58.7]} 7... Bg4 {[%clk 0:03:00.5]} 8. h3 {[%clk
0:02:57.7]} 8... Bxf3 {[%clk 0:03:00.5]} 9. Qxf3 {[%clk 0:02:57.4]} 9... e6
{[%clk 0:03:01.4]} 10. d3 {[%clk 0:02:57.3]} 10... Be7 {[%clk 0:03:01.8]} 11.
Be3 {[%clk 0:02:57.7]} 11... O-O {[%clk 0:03:02.2]} 12. Nd2 {[%clk 0:02:57.1]}
12... d5 {[%clk 0:03:01]} 13. Bf4 {[%clk 0:02:47.1]} 13... b5 {[%clk 0:02:46.7]}
14. Qe2 {[%clk 0:02:39.5]} 14... Re8 {[%clk 0:02:42.9]} 15. Nf3 {[%clk
0:02:39.2]} 15... c4 {[%clk 0:02:32.2]} 16. e5 {[%clk 0:02:32.9]} 16... cxd3
{[%clk 0:02:31.5]} 17. Qxd3 {[%clk 0:02:32.5]} 17... Ne4 {[%clk 0:02:32]} 18.
Nd4 {[%clk 0:02:22.9]} 18... Qb6 {[%clk 0:02:25.5]} 19. Rad1 {[%clk 0:01:58.5]}
19... Bc5 {[%clk 0:02:17.8]} 20. g3 {[%clk 0:01:33.7]} 20... g5 {[%clk
0:01:58.8]} 21. Bxg5 {[%clk 0:01:33.3]} 21... Nxg5 {[%clk 0:01:50.8]} 22. f3
{[%clk 0:01:15.2]} 22... Bxd4+ {[%clk 0:01:42.6]} 23. cxd4 {[%clk 0:01:16.1]}
23... Nxd4 {[%clk 0:01:42.4]} 24. Kg2 {[%clk 0:01:05.1]} 24... Ndxf3 {[%clk
0:01:33.3]} 25. Re3 {[%clk 0:01:03.6]} 25... d4 {[%clk 0:01:03.6]} 26. Rxf3
{[%clk 0:01:01.1]} 26... Qc6 {[%clk 0:00:56.8]} 27. Be2 {[%clk 0:01:00.6]} 27...
Rac8 {[%clk 0:00:55.2]} 28. Rd2 {[%clk 0:00:41.8]} 28... Red8 {[%clk 0:00:38.9]}
29. h4 {[%clk 0:00:41.4]} 29... Nxf3 {[%clk 0:00:38.8]} 30. Bxf3 {[%clk
0:00:42.3]} 30... Qc1 {[%clk 0:00:36.4]} 31. Be4 {[%clk 0:00:35.7]} 31... h6
{[%clk 0:00:36.1]} 32. Re2 {[%clk 0:00:26.1]} 32... Rc5 {[%clk 0:00:24.8]} 33.
Qf3 {[%clk 0:00:25.4]} 33... Kf8 {[%clk 0:00:13.6]} 34. Qf6 {[%clk 0:00:22.9]}
34... Ke8 {[%clk 0:00:13]} 35. Rf2 {[%clk 0:00:21.7]} 35... Rc7 {[%clk 0:00:06]}
36. Qh8+ {[%clk 0:00:21]} 36... Ke7 {[%clk 0:00:05.6]} 37. Qf6+ {[%clk
0:00:10.1]} 37... Ke8 {[%clk 0:00:05.2]} 38. Qh8+ {[%clk 0:00:09.9]} 38... Kd7
{[%clk 0:00:04.7]} 39. Rxf7+ {[%clk 0:00:09.1]} 39... Kc8 {[%clk 0:00:05.6]} 40.
Rf8 {[%clk 0:00:09.3]} 40... Qd2+ {[%clk 0:00:04.5]} 41. Kh3 {[%clk 0:00:09.4]}
41... Rd7 {[%clk 0:00:01.9]} 42. Rxd8+ {[%clk 0:00:09.4]} 42... Rxd8 {[%clk
0:00:02.8]} 43. Qf6 {[%clk 0:00:10]} 43... Rd7 {[%clk 0:00:03.1]} 44. Qxe6
{[%clk 0:00:10.1]} 44... Kc7 {[%clk 0:00:03.6]} 45. Qc6+ {[%clk 0:00:10.4]}
45... Kd8 {[%clk 0:00:04]} 46. e6 {[%clk 0:00:10.9]} 46... Rc7 {[%clk
0:00:04.4]} 47. Qd6+ {[%clk 0:00:11.2]} 47... Kc8 {[%clk 0:00:05]} 48. e7 {[%clk
0:00:11.6]} 48... Qe3 {[%clk 0:00:03]} 49. e8=Q# {[%clk 0:00:10.9]} 1-0

[Event "*** Titled Tuesday Blitz"]
[Site "Chess.com"]
[Date "2021.04.06"]
[Round "4"]
[White "Alex_Molchanov"]
[Black "DanielTitichoca"]
[Result "1-0"]
[WhiteElo "2506"]
[BlackElo "2303"]
[TimeControl "180+1"]
[EndTime "10:40:32 PDT"]
[Termination "Alex_Molchanov won on time"]

1. e4 {[%clk 0:03:00.9]} 1... c5 {[%clk 0:02:57.8]} 2. Nf3 {[%clk 0:03:00.7]}
2... d6 {[%clk 0:02:58.7]} 3. Bb5+ {[%clk 0:02:59.5]} 3... Bd7 {[%clk
0:02:56.6]} 4. Bxd7+ {[%clk 0:02:59.1]} 4... Qxd7 {[%clk 0:02:57.2]} 5. O-O
{[%clk 0:02:57.4]} 5... Nf6 {[%clk 0:02:55.3]} 6. Re1 {[%clk 0:02:47.6]} 6...
Nc6 {[%clk 0:02:51.9]} 7. Nc3 {[%clk 0:02:39.4]} 7... g6 {[%clk 0:02:48]} 8. d3
{[%clk 0:02:39.2]} 8... Bg7 {[%clk 0:02:45.4]} 9. Bg5 {[%clk 0:02:38.4]} 9...
O-O {[%clk 0:02:46.3]} 10. Qd2 {[%clk 0:02:37.9]} 10... Rab8 {[%clk 0:02:41]}
11. Ne2 {[%clk 0:02:25.2]} 11... b5 {[%clk 0:02:37.5]} 12. Ng3 {[%clk
0:02:21.5]} 12... e5 {[%clk 0:02:35.7]} 13. h4 {[%clk 0:02:20.8]} 13... h5
{[%clk 0:02:31.7]} 14. Nh2 {[%clk 0:02:18.3]} 14... Nd4 {[%clk 0:02:24.6]} 15.
Ngf1 {[%clk 0:02:10.1]} 15... Nh7 {[%clk 0:02:10.4]} 16. Ne3 {[%clk 0:01:49.2]}
16... f5 {[%clk 0:02:03.7]} 17. c3 {[%clk 0:01:38.2]} 17... Ne6 {[%clk
0:02:01.6]} 18. Nd5 {[%clk 0:01:38.2]} 18... f4 {[%clk 0:01:35.1]} 19. Nf3
{[%clk 0:01:21.7]} 19... Nhxg5 {[%clk 0:01:30.6]} 20. hxg5 {[%clk 0:01:19.7]}
20... Qd8 {[%clk 0:01:28.1]} 21. d4 {[%clk 0:01:16.8]} 21... Nxg5 {[%clk
0:01:22.4]} 22. Nxg5 {[%clk 0:01:10.2]} 22... Qxg5 {[%clk 0:01:23]} 23. dxc5
{[%clk 0:01:09.1]} 23... dxc5 {[%clk 0:01:21.4]} 24. Kf1 {[%clk 0:01:05.3]}
24... h4 {[%clk 0:01:06.2]} 25. Qd3 {[%clk 0:00:52.5]} 25... Qg4 {[%clk
0:00:47.4]} 26. Qf3 {[%clk 0:00:20.5]} 26... Qxf3 {[%clk 0:00:45.7]} 27. gxf3
{[%clk 0:00:21.4]} 27... h3 {[%clk 0:00:32.8]} 28. Kg1 {[%clk 0:00:21.1]} 28...
Kf7 {[%clk 0:00:31.8]} 29. Kh2 {[%clk 0:00:21.5]} 29... Rh8 {[%clk 0:00:31]} 30.
Rg1 {[%clk 0:00:21.4]} 30... Rh6 {[%clk 0:00:28.5]} 31. Rad1 {[%clk 0:00:20.8]}
31... Rb7 {[%clk 0:00:22.4]} 32. Rd2 {[%clk 0:00:16]} 32... Bf8 {[%clk
0:00:22.4]} 33. Rg5 {[%clk 0:00:14.5]} 33... Bd6 {[%clk 0:00:15.3]} 34. Nxf4
{[%clk 0:00:08.6]} 34... exf4 {[%clk 0:00:09.5]} 35. Rxd6 {[%clk 0:00:08]} 35...
b4 {[%clk 0:00:09.4]} 36. c4 {[%clk 0:00:07.8]} 36... b3 {[%clk 0:00:08.3]} 37.
a3 {[%clk 0:00:07.9]} 37... a5 {[%clk 0:00:07.5]} 38. Rxc5 {[%clk 0:00:08.1]}
38... Re7 {[%clk 0:00:05.4]} 39. Rxa5 {[%clk 0:00:07.1]} 39... Rc7 {[%clk
0:00:03.8]} 40. c5 {[%clk 0:00:06.3]} 40... Rb7 {[%clk 0:00:01.4]} 41. c6 {[%clk
0:00:05.5]} 41... Rc7 {[%clk 0:00:02.3]} 42. Rad5 {[%clk 0:00:04.6]} 1-0

[Event "*** Titled Tuesday Blitz"]
[Site "Chess.com"]
[Date "2021.04.06"]
[Round "4"]
[White "Vandros57"]
[Black "korkmaz16"]
[Result "0-1"]
[WhiteElo "2213"]
[BlackElo "2432"]
[TimeControl "180+1"]
[EndTime "10:40:32 PDT"]
[Termination "korkmaz16 won on time"]

1. d4 {[%clk 0:03:00.9]} 1... d5 {[%clk 0:02:54.8]} 2. Nf3 {[%clk 0:02:59.4]}
2... Nf6 {[%clk 0:02:54]} 3. c4 {[%clk 0:02:58.4]} 3... e6 {[%clk 0:02:53.2]} 4.
Nc3 {[%clk 0:02:57.5]} 4... Be7 {[%clk 0:02:52.4]} 5. Bg5 {[%clk 0:02:56.9]}
5... O-O {[%clk 0:02:49.1]} 6. e3 {[%clk 0:02:56.2]} 6... h6 {[%clk 0:02:48.5]}
7. Bxf6 {[%clk 0:02:55.4]} 7... Bxf6 {[%clk 0:02:44.7]} 8. Rc1 {[%clk 0:02:55]}
8... c6 {[%clk 0:02:42.6]} 9. Bd3 {[%clk 0:02:53.5]} 9... Nd7 {[%clk 0:02:38.2]}
10. O-O {[%clk 0:02:52.4]} 10... dxc4 {[%clk 0:02:38.2]} 11. Bxc4 {[%clk
0:02:50.9]} 11... e5 {[%clk 0:02:38.5]} 12. h3 {[%clk 0:02:32.2]} 12... exd4
{[%clk 0:02:35.5]} 13. exd4 {[%clk 0:02:31.2]} 13... Nb6 {[%clk 0:02:32.9]} 14.
Bb3 {[%clk 0:02:28.3]} 14... Bf5 {[%clk 0:02:28.3]} 15. Qd2 {[%clk 0:02:22.6]}
15... Qd7 {[%clk 0:02:20.9]} 16. Rfe1 {[%clk 0:02:19.2]} 16... Rad8 {[%clk
0:02:15.9]} 17. Qf4 {[%clk 0:02:11.5]} 17... Rfe8 {[%clk 0:01:19.6]} 18. Ne5
{[%clk 0:01:52.6]} 18... Bxe5 {[%clk 0:01:15.7]} 19. Rxe5 {[%clk 0:01:42.4]}
19... Be6 {[%clk 0:01:08.5]} 20. Bxe6 {[%clk 0:01:32.5]} 20... Rxe6 {[%clk
0:01:08.3]} 21. Rxe6 {[%clk 0:01:27.6]} 21... Qxe6 {[%clk 0:01:07.2]} 22. Qc7
{[%clk 0:00:54.1]} 22... Qd7 {[%clk 0:00:54.2]} 23. Qxd7 {[%clk 0:00:46]} 23...
Rxd7 {[%clk 0:00:54.3]} 24. Rd1 {[%clk 0:00:45.9]} 24... f5 {[%clk 0:00:44.9]}
25. g3 {[%clk 0:00:44]} 25... Nd5 {[%clk 0:00:44.5]} 26. Ne2 {[%clk 0:00:38.5]}
26... Kf7 {[%clk 0:00:35.5]} 27. Kg2 {[%clk 0:00:38.2]} 27... g5 {[%clk
0:00:35]} 28. Kf3 {[%clk 0:00:37.7]} 28... Kf6 {[%clk 0:00:35]} 29. a3 {[%clk
0:00:32.1]} 29... h5 {[%clk 0:00:34.8]} 30. h4 {[%clk 0:00:26.4]} 30... g4+
{[%clk 0:00:34.8]} 31. Kg2 {[%clk 0:00:26]} 31... f4 {[%clk 0:00:35.2]} 32. Nxf4
{[%clk 0:00:21.9]} 32... Nxf4+ {[%clk 0:00:34.9]} 33. gxf4 {[%clk 0:00:22]}
33... Kf5 {[%clk 0:00:34.6]} 34. f3 {[%clk 0:00:20]} 34... Kxf4 {[%clk
0:00:32.6]} 35. fxg4 {[%clk 0:00:19.8]} 35... Kxg4 {[%clk 0:00:30]} 36. Kf2
{[%clk 0:00:19.8]} 36... Kxh4 {[%clk 0:00:26.4]} 37. Ke3 {[%clk 0:00:14.9]}
37... Kg4 {[%clk 0:00:25.5]} 38. Rg1+ {[%clk 0:00:14.2]} 38... Kf5 {[%clk
0:00:25.8]} 39. Rf1+ {[%clk 0:00:10.8]} 39... Ke6 {[%clk 0:00:26]} 40. Rh1
{[%clk 0:00:09.6]} 40... Rh7 {[%clk 0:00:26.1]} 41. Rh4 {[%clk 0:00:09.3]} 41...
Kd5 {[%clk 0:00:25.7]} 42. Kd3 {[%clk 0:00:09.3]} 42... Rh6 {[%clk 0:00:25.6]}
43. b3 {[%clk 0:00:08.9]} 43... b6 {[%clk 0:00:25.9]} 44. a4 {[%clk 0:00:08.2]}
44... a5 {[%clk 0:00:26.1]} 45. Rf4 {[%clk 0:00:06.8]} 45... h4 {[%clk
0:00:25.5]} 46. Rf5+ {[%clk 0:00:05.8]} 46... Kd6 {[%clk 0:00:25.7]} 47. Rf2
{[%clk 0:00:04.2]} 47... h3 {[%clk 0:00:25.8]} 48. Rh2 {[%clk 0:00:04.1]} 48...
Rh4 {[%clk 0:00:26.2]} 49. Ke3 {[%clk 0:00:01.4]} 49... Kd5 {[%clk 0:00:26.5]}
50. Kf3 {[%clk 0:00:01.6]} 50... Kxd4 {[%clk 0:00:26.9]} 51. Kg3 {[%clk
0:00:01.4]} 51... Rh6 {[%clk 0:00:26.2]} 52. Rd2+ {[%clk 0:00:01.4]} 52... Kc3
{[%clk 0:00:26.3]} 53. Rd1 {[%clk 0:00:01.5]} 53... Kxb3 {[%clk 0:00:26.2]} 0-1